[Event "Elitserien 2019/2020, round 7-9"]
[Site "Elite stadshotellet, Kungsgatan 6, Vaxjo, Sweden"]
[Date "2020.10.16"]
[Round "1.4"]
[White "Larsson, Victor"]
[Black "Penalver, Osmani"]
[Result "1-0"]
[TimeControl "90 minutes for 40 moves + 30 minutes for the rest of the game + 30 seconds per move from move one."]
[WhiteFideId "1707019"]
[BlackFideId "1704516"]
[WhiteElo "2186"]
[BlackElo "2250"]

1. d4 {[%clk 01:30:54]} {[%emt 00:00:05]} Nf6 {[%clk 01:30:47]} {[%emt
00:00:13]} 2. c4 {[%clk 01:30:44]} {[%emt 00:00:40]} e6 {[%clk 01:31:03]}
{[%emt 00:00:15]} 3. Nf3 {[%clk 01:31:09]} {[%emt 00:00:05]} b6 {[%clk
01:31:26]} {[%emt 00:00:06]} 4. g3 {[%clk 01:31:30]} {[%emt 00:00:10]} Ba6
{[%clk 01:31:42]} {[%emt 00:00:13]} 5. Qa4 {[%clk 01:31:27]} {[%emt 00:00:33]}
c6 {[%clk 01:29:43]} {[%emt 00:02:29]} 6. Bg2 {[%clk 01:31:06]} {[%emt
00:00:51]} Be7 {[%clk 01:29:54]} {[%emt 00:00:19]} 7. Nc3 {[%clk 01:31:12]}
{[%emt 00:00:24]} O-O {[%clk 01:29:54]} {[%emt 00:00:29]} 8. O-O {[%clk
01:30:40]} {[%emt 00:01:02]} d5 {[%clk 01:30:12]} {[%emt 00:00:12]} 9. Ne5
{[%clk 01:30:40]} {[%emt 00:00:29]} b5 {[%clk 01:26:07]} {[%emt 00:04:36]} 10.
cxb5 {[%clk 01:29:52]} {[%emt 00:01:18]} cxb5 {[%clk 01:26:31]} {[%emt
00:00:06]} 11. Nxb5 {[%clk 01:13:07]} {[%emt 00:17:16]} Qe8 {[%clk 01:26:20]}
{[%emt 00:00:40]} 12. Nc3 {[%clk 01:13:35]} {[%emt 00:00:02]} Qxa4 {[%clk
01:26:31]} {[%emt 00:00:18]} 13. Nxa4 {[%clk 01:14:04]} {[%emt 00:00:02]} Bxe2
{[%clk 01:26:50]} {[%emt 00:00:11]} 14. Re1 {[%clk 01:14:33]} {[%emt 00:00:01]}
Bb5 {[%clk 01:25:50]} {[%emt 00:01:29]} 15. Nc3 {[%clk 01:13:36]} {[%emt
00:01:27]} Ba6 {[%clk 01:25:55]} {[%emt 00:00:25]} 16. Bg5 {[%clk 01:13:52]}
{[%emt 00:00:14]} Rd8 {[%clk 01:13:58]} {[%emt 00:12:27]} 17. Rab1 {[%clk
00:59:58]} {[%emt 00:14:24]} h6 {[%clk 01:13:06]} {[%emt 00:01:23]} 18. Bf4
{[%clk 00:53:38]} {[%emt 00:06:50]} Rc8 {[%clk 00:58:21]} {[%emt 00:15:14]} 19.
Bh3 {[%clk 00:51:17]} {[%emt 00:02:52]} Nc6 {[%clk 00:52:39]} {[%emt 00:06:12]}
20. Nxf7 {[%clk 00:43:41]} {[%emt 00:08:06]} Kxf7 {[%clk 00:52:50]} {[%emt
00:00:20]} 21. Bxe6+ {[%clk 00:43:44]} {[%emt 00:00:26]} Kf8 {[%clk 00:53:09]}
{[%emt 00:00:11]} 22. Nxd5 {[%clk 00:41:11]} {[%emt 00:03:03]} Nxd5 {[%clk
00:43:46]} {[%emt 00:09:53]} 23. Bxd5 {[%clk 00:41:31]} {[%emt 00:00:11]} Bb7
{[%clk 00:42:09]} {[%emt 00:02:07]} 24. Re3 {[%clk 00:41:15]} {[%emt 00:00:45]}
Rd8 {[%clk 00:39:52]} {[%emt 00:02:47]} 25. Bg2 {[%clk 00:30:56]} {[%emt
00:10:50]} Rxd4 {[%clk 00:38:08]} {[%emt 00:02:13]} 26. Rc1 {[%clk 00:27:39]}
{[%emt 00:03:46]} g5 {[%clk 00:36:25]} {[%emt 00:02:14]} 27. Bxc6 {[%clk
00:15:33]} {[%emt 00:12:37]} gxf4 {[%clk 00:32:37]} {[%emt 00:04:17]} 28. Bxb7
{[%clk 00:15:05]} {[%emt 00:00:58]} fxe3 {[%clk 00:32:59]} {[%emt 00:00:09]} 29.
Bxa8 {[%clk 00:15:31]} {[%emt 00:00:03]} e2 {[%clk 00:33:03]} {[%emt 00:00:27]}
30. Bf3 {[%clk 00:15:59]} {[%emt 00:00:02]} Rd2 {[%clk 00:33:26]} {[%emt
00:00:06]} 31. Re1 {[%clk 00:16:25]} {[%emt 00:00:04]} Rxb2 {[%clk 00:31:50]}
{[%emt 00:02:05]} 32. Rxe2 {[%clk 00:16:43]} {[%emt 00:00:12]} Rb6 {[%clk
00:28:36]} {[%emt 00:03:43]} 33. Rc2 {[%clk 00:16:42]} {[%emt 00:00:31]} Bd8
{[%clk 00:11:13]} {[%emt 00:17:53]} 34. Bd5 {[%clk 00:14:20]} {[%emt 00:02:52]}
Rd6 {[%clk 00:09:56]} {[%emt 00:01:47]} 35. Bb3 {[%clk 00:13:51]} {[%emt
00:01:00]} Bb6 {[%clk 00:09:45]} {[%emt 00:00:39]} 36. Kg2 {[%clk 00:14:05]}
{[%emt 00:00:17]} Kg7 {[%emt 00:02:53]} 37. Re2 {[%clk 00:13:54]} {[%emt
00:00:28]} Kf6 {[%clk 00:07:03]} {[%emt 00:01:02]} 38. h4 {[%clk 00:14:10]}
{[%emt 00:00:14]} Bc5 {[%clk 00:03:43]} {[%emt 00:03:50]} 39. Kf3 {[%clk
00:13:38]} {[%emt 00:01:02]} h5 {[%clk 00:01:55]} {[%emt 00:02:19]} 40. Rc2
{[%clk 00:13:30]} {[%emt 00:00:38]} Bb6 {[%clk 00:02:17]} {[%emt 00:00:08]} 41.
Ba4 {[%clk 00:13:46]} {[%emt 00:00:13]} Ke5 {[%clk 00:00:36]} {[%emt 00:02:11]}
42. Be8 {[%clk 00:11:35]} {[%emt 00:02:40]} Rf6+ {[%clk 00:00:36]} {[%emt
00:00:30]} 43. Kg2 {[%clk 00:11:54]} {[%emt 00:00:12]} Rh6 {[%clk 00:00:57]}
{[%emt 00:00:09]} 44. Rb2 {[%clk 00:11:28]} {[%emt 00:00:56]} Kd6 {[%clk
00:30:07]} {[%emt 00:01:20]} 45. Rd2+ {[%clk 00:39:37]} {[%emt 00:02:21]} Ke7
{[%clk 00:28:52]} {[%emt 00:01:46]} 46. Re2+ {[%clk 00:39:54]} {[%emt
00:00:13]} Kf6 {[%clk 00:28:23]} {[%emt 00:00:59]} 47. Bd7 {[%clk 00:39:19]}
{[%emt 00:01:04]} Rh8 {[%clk 00:27:34]} {[%emt 00:01:19]} 48. Re6+ {[%clk
00:39:38]} {[%emt 00:00:11]} Kf7 {[%clk 00:27:32]} {[%emt 00:00:33]} 49. Re5
{[%clk 00:39:57]} {[%emt 00:00:10]} Rd8 {[%clk 00:25:28]} {[%emt 00:02:34]} 50.
Bb5 {[%clk 00:39:14]} {[%emt 00:01:13]} Rd2 {[%clk 00:23:51]} {[%emt 00:02:07]}
51. Re2 {[%clk 00:39:27]} {[%emt 00:00:17]} Rd8 {[%clk 00:24:00]} {[%emt
00:00:21]} 52. Bc4+ {[%clk 00:38:48]} {[%emt 00:01:09]} Kf6 {[%clk 00:23:21]}
{[%emt 00:01:09]} 53. Re6+ {[%clk 00:37:26]} {[%emt 00:01:52]} Kg7 {[%clk
00:23:38]} {[%emt 00:00:13]} 54. Re2 {[%clk 00:35:00]} {[%emt 00:02:56]} Kf6
{[%clk 00:22:44]} {[%emt 00:01:24]} 55. Bb5 {[%clk 00:35:24]} {[%emt 00:00:06]}
Kf7 {[%clk 00:19:20]} {[%emt 00:03:54]} 56. Kh3 {[%clk 00:35:28]} {[%emt
00:00:24]} Kf6 {[%clk 00:19:14]} {[%emt 00:00:37]} 57. Bc6 {[%clk 00:34:37]}
{[%emt 00:01:21]} Rd3 {[%clk 00:18:38]} {[%emt 00:01:06]} 58. Kg2 {[%clk
00:34:36]} {[%emt 00:00:32]} Ra3 {[%clk 00:16:50]} {[%emt 00:02:17]} 59. Be8
{[%clk 00:34:12]} {[%emt 00:00:54]} Ra5 {[%clk 00:16:32]} {[%emt 00:00:48]} 60.
f3 {[%clk 00:34:21]} {[%emt 00:00:21]} Rd5 {[%clk 00:12:57]} {[%emt 00:04:05]}
61. Bc6 {[%clk 00:28:56]} {[%emt 00:05:55]} Rd6 {[%clk 00:12:31]} {[%emt
00:00:56]} 62. Be4 {[%clk 00:29:04]} {[%emt 00:00:22]} Rd1 {[%clk 00:12:44]}
{[%emt 00:00:16]} 63. Bc2 {[%clk 00:27:56]} {[%emt 00:01:39]} Rg1+ {[%clk
00:12:20]} {[%emt 00:00:53]} 64. Kh2 {[%clk 00:28:25]} {[%emt 00:00:01]} Rf1
{[%clk 00:12:04]} {[%emt 00:00:46]} 65. Be4 {[%clk 00:28:47]} {[%emt 00:00:08]}
Rd1 {[%clk 00:08:58]} {[%emt 00:03:36]} 66. g4 {[%clk 00:28:17]} {[%emt
00:01:00]} hxg4 {[%clk 00:04:52]} {[%emt 00:04:36]} 67. fxg4 {[%clk 00:28:42]}
{[%emt 00:00:04]} Bc7+ {[%clk 00:04:12]} {[%emt 00:01:10]} 68. Kg2 {[%clk
00:27:17]} {[%emt 00:01:56]} Bb6 {[%clk 00:03:19]} {[%emt 00:01:23]} 69. g5+
{[%clk 00:27:31]} {[%emt 00:00:16]} Kf7 {[%clk 00:03:18]} {[%emt 00:00:31]} 70.
Kf3 {[%clk 00:26:47]} {[%emt 00:01:14]} Rg1 {[%clk 00:03:41]} {[%emt 00:00:07]}
71. Rg2 {[%clk 00:26:54]} {[%emt 00:00:23]} Rf1+ {[%clk 00:03:08]} {[%emt
00:01:03]} 72. Kg4 {[%clk 00:26:57]} {[%emt 00:00:26]} Be3 {[%clk 00:02:53]}
{[%emt 00:00:46]} 73. Bd5+ {[%clk 00:26:50]} {[%emt 00:00:37]} Kg7 {[%clk
00:02:52]} {[%emt 00:00:31]} 74. Re2 {[%clk 00:24:43]} {[%emt 00:02:37]} Bc5
{[%clk 00:01:58]} {[%emt 00:01:23]} 75. h5 {[%clk 00:24:55]} {[%emt 00:00:17]}
Bd6 {[%clk 00:01:08]} {[%emt 00:01:21]} 76. h6+ {[%clk 00:25:05]} {[%emt
00:00:21]} Kf8 {[%clk 00:00:40]} {[%emt 00:00:58]} 77. g6 {[%clk 00:24:59]}
{[%emt 00:00:34]} 1-0

[Event "Elitserien 2019/2020, round 7-9"]
[Site "Elite stadshotellet, Kungsgatan 6, Vaxjo, Sweden"]
[Date "2020.10.16"]
[Round "1.5"]
[White "Eklund, Joel"]
[Black "Akerman, Axel"]
[Result "1-0"]
[TimeControl "90 minutes for 40 moves + 30 minutes for the rest of the game + 30 seconds per move from move one."]
[WhiteFideId "1705288"]
[BlackFideId "1715810"]
[WhiteElo "2216"]
[BlackElo "2199"]

1. d4 {[%clk 01:30:53]} {[%emt 00:00:06]} d5 {[%clk 01:30:59]} {[%emt
00:00:02]} 2. Bg5 {[%clk 01:31:04]} {[%emt 00:00:18]} Bf5 {[%clk 01:30:45]}
{[%emt 00:00:44]} 3. c4 {[%clk 01:31:14]} {[%emt 00:00:20]} c6 {[%clk
01:30:41]} {[%emt 00:00:34]} 4. Qb3 {[%clk 01:30:53]} {[%emt 00:00:50]} Qb6
{[%clk 01:30:00]} {[%emt 00:01:12]} 5. Nc3 {[%clk 01:28:38]} {[%emt 00:02:45]}
e6 {[%clk 01:26:58]} {[%emt 00:03:32]} 6. c5 {[%clk 01:28:25]} {[%emt
00:00:43]} Qxb3 {[%clk 01:25:49]} {[%emt 00:01:39]} 7. axb3 {[%clk 01:28:47]}
{[%emt 00:00:07]} e5 {[%clk 01:23:22]} {[%emt 00:02:57]} 8. e3 {[%clk
01:27:44]} {[%emt 00:01:33]} Nd7 {[%clk 01:22:42]} {[%emt 00:01:10]} 9. b4
{[%clk 01:27:59]} {[%emt 00:00:16]} h6 {[%clk 01:18:05]} {[%emt 00:05:07]} 10.
Bh4 {[%clk 01:28:10]} {[%emt 00:00:18]} g5 {[%clk 01:17:45]} {[%emt 00:00:50]}
11. Bg3 {[%clk 01:28:19]} {[%emt 00:00:21]} exd4 {[%clk 01:17:58]} {[%emt
00:00:17]} 12. exd4 {[%clk 01:28:20]} {[%emt 00:00:29]} Bg7 {[%clk 01:18:23]}
{[%emt 00:00:05]} 13. Nf3 {[%clk 01:18:36]} {[%emt 00:10:14]} Ne7 {[%clk
01:18:08]} {[%emt 00:00:45]} 14. Kd2 {[%clk 01:06:28]} {[%emt 00:12:38]} O-O
{[%clk 01:16:51]} {[%emt 00:01:47]} 15. Bd3 {[%clk 01:02:15]} {[%emt 00:04:43]}
Rfe8 {[%clk 01:10:14]} {[%emt 00:07:07]} 16. Rhe1 {[%clk 00:54:39]} {[%emt
00:08:06]} Be4 {[%clk 01:00:09]} {[%emt 00:10:35]} 17. Bxe4 {[%clk 00:47:57]}
{[%emt 00:07:12]} dxe4 {[%clk 01:00:30]} {[%emt 00:00:09]} 18. Nxe4 {[%clk
00:48:08]} {[%emt 00:00:19]} f5 {[%clk 00:58:53]} {[%emt 00:02:07]} 19. Nd6
{[%clk 00:48:12]} {[%emt 00:00:25]} f4 {[%clk 00:57:59]} {[%emt 00:01:24]} 20.
Bxf4 {[%clk 00:48:01]} {[%emt 00:00:41]} gxf4 {[%clk 00:58:22]} {[%emt
00:00:08]} 21. Nxe8 {[%clk 00:48:21]} {[%emt 00:00:09]} Rxe8 {[%clk 00:57:45]}
{[%emt 00:01:08]} 22. Rxa7 {[%clk 00:48:40]} {[%emt 00:00:11]} Nf6 {[%clk
00:40:51]} {[%emt 00:17:24]} 23. Rxb7 {[%clk 00:48:41]} {[%emt 00:00:29]} Nfd5
{[%clk 00:41:13]} {[%emt 00:00:08]} 24. b5 {[%clk 00:43:36]} {[%emt 00:05:35]}
cxb5 {[%clk 00:34:05]} {[%emt 00:07:38]} 25. Rxb5 {[%clk 00:41:52]} {[%emt
00:02:14]} Rd8 {[%clk 00:29:59]} {[%emt 00:04:35]} 26. Rb7 {[%clk 00:36:32]}
{[%emt 00:05:50]} Kf8 {[%clk 00:20:34]} {[%emt 00:09:56]} 27. Re6 {[%clk
00:31:12]} {[%emt 00:05:50]} Rc8 {[%clk 00:14:52]} {[%emt 00:06:12]} 28. Rd6
{[%clk 00:28:48]} {[%emt 00:02:52]} Nf6 {[%clk 00:13:54]} {[%emt 00:01:29]} 29.
Kd3 {[%clk 00:25:17]} {[%emt 00:04:01]} Nc6 {[%clk 00:06:43]} {[%emt 00:07:42]}
30. b4 {[%clk 00:23:00]} {[%emt 00:02:46]} Ne8 {[%clk 00:05:40]} {[%emt
00:01:33]} 31. Re6 {[%clk 00:18:25]} {[%emt 00:05:04]} Nf6 {[%clk 00:04:44]}
{[%emt 00:01:27]} 32. Ne5 {[%clk 00:12:01]} {[%emt 00:06:53]} Nxe5+ {[%clk
00:04:07]} {[%emt 00:01:07]} 33. Rxe5 {[%clk 00:11:27]} {[%emt 00:01:04]} Kg8
{[%clk 00:03:01]} {[%emt 00:01:36]} 34. Rf5 {[%clk 00:07:42]} {[%emt 00:04:13]}
Rd8 {[%clk 00:02:35]} {[%emt 00:00:58]} 35. Rxf4 {[%clk 00:07:34]} {[%emt
00:00:38]} h5 {[%clk 00:02:29]} {[%emt 00:00:36]} 36. Kc4 {[%clk 00:05:32]}
{[%emt 00:02:31]} Ra8 {[%clk 00:01:41]} {[%emt 00:01:18]} 37. d5 {[%clk
00:04:20]} {[%emt 00:01:42]} Ra1 {[%clk 00:01:27]} {[%emt 00:00:44]} 38. d6
{[%clk 00:03:09]} {[%emt 00:01:41]} Rc1+ {[%clk 00:01:28]} {[%emt 00:00:29]} 39.
Kb5 {[%clk 00:02:57]} {[%emt 00:00:41]} Rd1 {[%clk 00:01:47]} {[%emt 00:00:11]}
40. Rf5 {[%clk 00:02:50]} {[%emt 00:00:37]} Ne4 {[%clk 00:01:29]} {[%emt
00:00:49]} 41. Kc6 {[%clk 00:01:14]} {[%emt 00:02:06]} h4 {[%clk 00:27:37]}
{[%emt 00:04:22]} 42. d7 {[%clk 00:29:10]} {[%emt 00:02:33]} h3 {[%clk
00:27:53]} {[%emt 00:00:13]} 43. gxh3 {[%clk 00:28:56]} {[%emt 00:00:45]} 1-0

[Event "Elitserien 2019/2020, round 7-9"]
[Site "Elite stadshotellet, Kungsgatan 6, Vaxjo, Sweden"]
[Date "2020.10.16"]
[Round "1.6"]
[White "Fraenkel, Mikael"]
[Black "Holst, Conny"]
[Result "0-1"]
[TimeControl "90 minutes for 40 moves + 30 minutes for the rest of the game + 30 seconds per move from move one."]
[BlackTitle "FM"]
[WhiteFideId "1706985"]
[BlackFideId "1701428"]
[WhiteElo "2045"]
[BlackElo "2128"]

1. e4 {[%clk 01:30:56]} {[%emt 00:00:03]} c5 {[%clk 01:30:52]} {[%emt
00:00:09]} 2. Nf3 {[%clk 01:31:20]} {[%emt 00:00:06]} d6 {[%clk 01:31:01]}
{[%emt 00:00:20]} 3. d4 {[%clk 01:31:41]} {[%emt 00:00:09]} cxd4 {[%clk
01:31:23]} {[%emt 00:00:08]} 4. Nxd4 {[%clk 01:32:08]} {[%emt 00:00:04]} Nf6
{[%clk 01:31:38]} {[%emt 00:00:15]} 5. Nc3 {[%clk 01:32:31]} {[%emt 00:00:07]}
Nc6 {[%clk 01:31:46]} {[%emt 00:00:23]} 6. Bc4 {[%clk 01:31:30]} {[%emt
00:01:28]} Bd7 {[%clk 01:29:45]} {[%emt 00:02:33]} 7. f3 {[%clk 01:24:41]}
{[%emt 00:07:19]} g6 {[%clk 01:25:46]} {[%emt 00:04:29]} 8. Be3 {[%clk
01:24:14]} {[%emt 00:00:57]} Bg7 {[%clk 01:23:13]} {[%emt 00:03:02]} 9. Qd2
{[%clk 01:23:59]} {[%emt 00:00:46]} Rc8 {[%clk 01:22:31]} {[%emt 00:01:13]} 10.
Bb3 {[%clk 01:24:15]} {[%emt 00:00:14]} O-O {[%clk 01:12:02]} {[%emt 00:10:57]}
11. O-O-O {[%clk 01:24:13]} {[%emt 00:00:33]} Na5 {[%clk 01:09:50]} {[%emt
00:02:42]} 12. Bg5 {[%clk 01:23:18]} {[%emt 00:01:26]} a6 {[%clk 01:03:09]}
{[%emt 00:07:12]} 13. Rhe1 {[%clk 01:15:34]} {[%emt 00:08:13]} b5 {[%clk
00:59:32]} {[%emt 00:04:06]} 14. Nd5 {[%clk 01:09:33]} {[%emt 00:06:32]} Nxb3+
{[%clk 00:56:47]} {[%emt 00:03:15]} 15. axb3 {[%clk 01:09:00]} {[%emt
00:01:03]} Nxd5 {[%clk 00:53:35]} {[%emt 00:03:42]} 16. exd5 {[%clk 01:09:20]}
{[%emt 00:00:11]} Re8 {[%clk 00:52:59]} {[%emt 00:01:05]} 17. Re2 {[%clk
01:07:29]} {[%emt 00:02:21]} Rc5 {[%clk 00:46:50]} {[%emt 00:06:38]} 18. Nc6
{[%clk 00:39:07]} {[%emt 00:28:53]} Bxc6 {[%clk 00:43:52]} {[%emt 00:03:28]} 19.
dxc6 {[%clk 00:39:23]} {[%emt 00:00:14]} Rxc6 {[%clk 00:42:05]} {[%emt
00:02:18]} 20. Rde1 {[%clk 00:37:09]} {[%emt 00:02:44]} Rc7 {[%clk 00:38:17]}
{[%emt 00:04:17]} 21. h4 {[%clk 00:34:10]} {[%emt 00:03:29]} d5 {[%clk
00:29:49]} {[%emt 00:08:58]} 22. Qb4 {[%clk 00:23:22]} {[%emt 00:11:18]} f6
{[%clk 00:26:05]} {[%emt 00:04:15]} 23. Be3 {[%clk 00:23:09]} {[%emt 00:00:42]}
Rd7 {[%clk 00:25:12]} {[%emt 00:01:24]} 24. c3 {[%clk 00:15:52]} {[%emt
00:07:47]} e5 {[%clk 00:23:18]} {[%emt 00:02:23]} 25. h5 {[%clk 00:07:44]}
{[%emt 00:08:39]} gxh5 {[%clk 00:18:43]} {[%emt 00:05:05]} 26. Qh4 {[%clk
00:06:59]} {[%emt 00:01:15]} Qa5 {[%clk 00:10:41]} {[%emt 00:08:31]} 27. Qxh5
{[%clk 00:05:36]} {[%emt 00:01:54]} Rc8 {[%clk 00:09:13]} {[%emt 00:01:57]} 28.
Rh1 {[%clk 00:04:16]} {[%emt 00:01:50]} d4 {[%clk 00:04:38]} {[%emt 00:05:05]}
29. Qxh7+ {[%clk 00:03:07]} {[%emt 00:01:40]} Kf8 {[%clk 00:05:02]} {[%emt
00:00:06]} 30. Bd2 {[%clk 00:00:54]} {[%emt 00:02:43]} d3 {[%clk 00:04:28]}
{[%emt 00:01:03]} 31. Ree1 {[%clk 00:01:24]} {[%emt 00:00:01]} Qa1# {[%clk
00:04:45]} {[%emt 00:00:12]} 0-1

[Event "Elitserien 2019/2020, round 7-9"]
[Site "Elite stadshotellet, Kungsgatan 6, Vaxjo, Sweden"]
[Date "2020.10.16"]
[Round "1.7"]
[White "Mansson, Peter"]
[Black "Andersson, Bjorn"]
[Result "1/2-1/2"]
[TimeControl "90 minutes for 40 moves + 30 minutes for the rest of the game + 30 seconds per move from move one."]
[BlackTitle "FM"]
[WhiteFideId "1703048"]
[BlackFideId "1702114"]
[WhiteElo "2143"]
[BlackElo "2153"]

1. e4 {[%clk 01:30:55]} {[%emt 00:00:03]} c5 {[%clk 01:30:54]} {[%emt
00:00:06]} 2. Nc3 {[%clk 01:31:16]} {[%emt 00:00:10]} Nc6 {[%clk 01:30:50]}
{[%emt 00:00:34]} 3. Bb5 {[%clk 01:31:38]} {[%emt 00:00:08]} e6 {[%clk
01:31:12]} {[%emt 00:00:08]} 4. Bxc6 {[%clk 01:31:38]} {[%emt 00:00:30]} bxc6
{[%clk 01:31:35]} {[%emt 00:00:07]} 5. d3 {[%clk 01:31:27]} {[%emt 00:00:41]}
Ne7 {[%clk 01:31:49]} {[%emt 00:00:16]} 6. f4 {[%clk 01:28:34]} {[%emt
00:03:23]} Ng6 {[%clk 01:29:19]} {[%emt 00:03:00]} 7. Nf3 {[%clk 01:27:58]}
{[%emt 00:01:06]} Be7 {[%clk 01:29:17]} {[%emt 00:00:32]} 8. O-O {[%clk
01:24:51]} {[%emt 00:03:38]} Qc7 {[%clk 01:21:26]} {[%emt 00:08:20]} 9. f5
{[%clk 01:16:14]} {[%emt 00:09:07]} Nf8 {[%clk 01:11:21]} {[%emt 00:10:35]} 10.
Ng5 {[%clk 00:58:36]} {[%emt 00:18:09]} Bf6 {[%clk 01:08:26]} {[%emt 00:03:25]}
11. Qh5 {[%clk 00:44:54]} {[%emt 00:14:12]} d6 {[%clk 01:06:30]} {[%emt
00:02:26]} 12. fxe6 {[%clk 00:35:20]} {[%emt 00:10:04]} Bxe6 {[%clk 01:05:19]}
{[%emt 00:01:41]} 13. Bf4 {[%clk 00:33:02]} {[%emt 00:02:49]} O-O-O {[%clk
01:02:38]} {[%emt 00:03:11]} 14. Rae1 {[%clk 00:30:03]} {[%emt 00:03:28]} Ng6
{[%clk 00:56:49]} {[%emt 00:06:18]} 15. Nxe6 {[%clk 00:25:05]} {[%emt
00:05:28]} fxe6 {[%clk 00:57:13]} {[%emt 00:00:06]} 16. Bg5 {[%clk 00:23:45]}
{[%emt 00:01:50]} Rdf8 {[%clk 00:54:54]} {[%emt 00:02:49]} 17. Bxf6 {[%clk
00:23:34]} {[%emt 00:00:42]} gxf6 {[%clk 00:51:42]} {[%emt 00:03:41]} 18. Ne2
{[%clk 00:20:10]} {[%emt 00:03:55]} Rhg8 {[%clk 00:43:41]} {[%emt 00:08:30]} 19.
Qh3 {[%clk 00:18:23]} {[%emt 00:02:17]} Qe7 {[%clk 00:42:52]} {[%emt 00:01:18]}
20. d4 {[%clk 00:18:34]} {[%emt 00:00:20]} Kc7 {[%clk 00:34:21]} {[%emt
00:09:01]} 21. dxc5 {[%clk 00:17:44]} {[%emt 00:01:20]} dxc5 {[%clk 00:34:16]}
{[%emt 00:00:35]} 22. Qa3 {[%clk 00:15:56]} {[%emt 00:02:19]} Kb8 {[%clk
00:30:53]} {[%emt 00:03:51]} 23. Nf4 {[%clk 00:13:50]} {[%emt 00:02:37]} Nxf4
{[%clk 00:26:27]} {[%emt 00:04:57]} 24. Rxf4 {[%clk 00:14:12]} {[%emt
00:00:07]} Qd6 {[%clk 00:26:34]} {[%emt 00:00:22]} 25. Qf3 {[%clk 00:11:30]}
{[%emt 00:03:12]} Rg5 {[%clk 00:23:43]} {[%emt 00:03:21]} 26. Rd1 {[%clk
00:10:09]} {[%emt 00:01:51]} Qe7 {[%clk 00:20:28]} {[%emt 00:03:45]} 27. e5
{[%clk 00:07:37]} {[%emt 00:03:02]} Rxe5 {[%clk 00:18:40]} {[%emt 00:02:17]} 28.
Qxc6 {[%clk 00:07:58]} {[%emt 00:00:10]} Qc7 {[%clk 00:18:37]} {[%emt
00:00:33]} 29. Qb5+ {[%clk 00:07:52]} {[%emt 00:00:36]} Qb6 {[%clk 00:18:14]}
{[%emt 00:00:54]} 30. Qd7 {[%clk 00:07:43]} {[%emt 00:00:39]} Qc7 {[%clk
00:14:42]} {[%emt 00:04:01]} 31. Qb5+ {[%clk 00:08:11]} {[%emt 00:00:02]} Qb6
{[%clk 00:13:46]} {[%emt 00:01:26]} 32. Qd7 {[%clk 00:08:14]} {[%emt 00:00:27]}
Qc7 {[%clk 00:14:10]} {[%emt 00:00:06]} 33. Qb5+ {[%clk 00:01:18]} {[%emt
00:07:25]} 1/2-1/2